[Event "The Schackveckan 2023: Göteborg open"]
[Site "Göteborgs schackcentrum, Vegagatan 20, Gothenburg, Sweden"]
[Date "2023.08.11"]
[Round "2.5"]
[White "Johansson, William"]
[Black "Yang, Mandi"]
[Result "1/2-1/2"]
[TimeControl "15 minutes + 5 seconds per move from move one (Round 1 - 4) / 90 minutes + 30 seconds per move from move one (Round 5 - 8)"]
[WhiteFideId "1744070"]
[BlackFideId "1774778"]
[WhiteElo "2052"]
[BlackElo "1457"]

1. e4 {[%clk 00:15:08]} {[%emt 00:00:02]} c6 {[%clk 00:15:09]} {[%emt
00:00:02]} 2. d4 {[%clk 00:15:00]} {[%emt 00:00:13]} d5 {[%clk 00:15:13]} 3.
exd5 {[%clk 00:14:57]} {[%emt 00:00:08]} cxd5 {[%clk 00:15:17]} {[%emt
00:00:01]} 4. Bd3 {[%clk 00:15:01]} Nf6 {[%clk 00:15:20]} {[%emt 00:00:02]} 5.
c3 {[%clk 00:15:01]} {[%emt 00:00:06]} Bg4 {[%clk 00:15:22]} {[%emt 00:00:02]}
6. Qb3 {[%clk 00:15:03]} {[%emt 00:00:03]} Qc7 {[%clk 00:15:22]} {[%emt
00:00:06]} 7. f3 {[%clk 00:14:55]} {[%emt 00:00:13]} Bh5 {[%clk 00:15:23]}
{[%emt 00:00:04]} 8. Ne2 {[%clk 00:14:58]} {[%emt 00:00:02]} e6 {[%clk
00:14:34]} {[%emt 00:00:54]} 9. Bf4 {[%clk 00:14:53]} {[%emt 00:00:09]} Qd7
{[%clk 00:14:21]} {[%emt 00:00:19]} 10. Na3 {[%clk 00:14:41]} {[%emt 00:00:17]}
Nc6 {[%clk 00:14:00]} {[%emt 00:00:25]} 11. O-O {[%clk 00:13:54]} {[%emt
00:00:51]} Be7 {[%clk 00:13:33]} {[%emt 00:00:32]} 12. Nc2 {[%clk 00:12:24]}
{[%emt 00:01:36]} Na5 {[%clk 00:13:20]} {[%emt 00:00:18]} 13. Qb5 {[%clk
00:12:27]} Qxb5 {[%clk 00:12:51]} {[%emt 00:00:34]} 14. Bxb5+ {[%clk 00:12:31]}
{[%emt 00:00:01]} Nc6 {[%clk 00:12:55]} {[%emt 00:00:02]} 15. a4 {[%clk
00:12:21]} {[%emt 00:00:15]} O-O {[%clk 00:12:54]} {[%emt 00:00:06]} 16. a5
{[%clk 00:12:24]} {[%emt 00:00:01]} Bg6 {[%clk 00:12:47]} {[%emt 00:00:12]} 17.
Ne1 {[%clk 00:11:55]} {[%emt 00:00:34]} a6 {[%clk 00:12:30]} {[%emt 00:00:24]}
18. Bd3 {[%clk 00:11:57]} {[%emt 00:00:02]} Nd7 {[%clk 00:12:00]} {[%emt
00:00:36]} 19. Bxg6 {[%clk 00:11:43]} {[%emt 00:00:18]} hxg6 {[%clk 00:12:01]}
{[%emt 00:00:04]} 20. Nd3 {[%clk 00:11:45]} {[%emt 00:00:03]} f6 {[%clk
00:11:47]} {[%emt 00:00:19]} 21. Rfd1 {[%clk 00:10:27]} {[%emt 00:01:22]} Rac8
{[%clk 00:10:07]} {[%emt 00:01:45]} 22. Bg3 {[%clk 00:08:07]} {[%emt 00:02:25]}
Rfe8 {[%clk 00:09:38]} {[%emt 00:00:34]} 23. b4 {[%clk 00:07:14]} {[%emt
00:00:59]} Na7 {[%clk 00:09:13]} {[%emt 00:00:31]} 24. Nc5 {[%clk 00:07:07]}
{[%emt 00:00:11]} Nxc5 {[%clk 00:09:07]} {[%emt 00:00:11]} 25. bxc5 {[%clk
00:06:50]} {[%emt 00:00:23]} Nb5 {[%clk 00:08:51]} {[%emt 00:00:20]} 26. Rdc1
{[%clk 00:05:34]} {[%emt 00:01:21]} g5 {[%clk 00:07:54]} {[%emt 00:01:02]} 27.
h4 {[%clk 00:05:30]} {[%emt 00:00:09]} gxh4 {[%clk 00:07:58]} {[%emt 00:00:02]}
28. Bxh4 {[%clk 00:05:32]} {[%emt 00:00:03]} e5 {[%clk 00:06:59]} {[%emt
00:01:04]} 29. Kf2 {[%clk 00:05:04]} {[%emt 00:00:32]} f5 {[%clk 00:05:31]}
{[%emt 00:01:33]} 30. Bxe7 {[%clk 00:04:53]} {[%emt 00:00:16]} Rxe7 {[%clk
00:05:34]} {[%emt 00:00:01]} 31. Ra4 {[%clk 00:02:22]} {[%emt 00:02:37]} g5
{[%clk 00:04:05]} {[%emt 00:01:34]} 32. c4 {[%clk 00:02:07]} {[%emt 00:00:21]}
dxc4 {[%clk 00:02:44]} {[%emt 00:01:25]} 33. Raxc4 {[%clk 00:02:09]} {[%emt
00:00:02]} exd4 {[%clk 00:01:52]} {[%emt 00:00:57]} 34. Nxd4 {[%clk 00:02:13]}
{[%emt 00:00:02]} Nxd4 {[%clk 00:01:54]} {[%emt 00:00:03]} 35. Rxd4 {[%clk
00:02:17]} {[%emt 00:00:02]} Re5 {[%clk 00:01:27]} {[%emt 00:00:31]} 36. Rdc4
{[%clk 00:02:20]} {[%emt 00:00:01]} Rce8 {[%clk 00:01:01]} {[%emt 00:00:32]} 37.
R1c2 {[%clk 00:01:04]} {[%emt 00:01:20]} Rc8 {[%clk 00:00:40]} {[%emt
00:00:27]} 38. Kg3 {[%clk 00:00:58]} {[%emt 00:00:10]} Kg7 {[%clk 00:00:42]}
{[%emt 00:00:03]} 39. f4 {[%clk 00:00:22]} {[%emt 00:00:41]} gxf4+ {[%clk
00:00:40]} {[%emt 00:00:07]} 40. Kxf4 {[%clk 00:00:26]} {[%emt 00:00:01]} Kf6
{[%clk 00:00:39]} {[%emt 00:00:07]} 41. c6 {[%clk 00:00:08]} {[%emt 00:00:23]}
Rxa5 {[%clk 00:00:14]} {[%emt 00:00:29]} 42. cxb7 {[%clk 00:00:09]} {[%emt
00:00:04]} Rb8 {[%clk 00:00:18]} {[%emt 00:00:01]} 43. Rc6+ {[%clk 00:00:11]}
{[%emt 00:00:03]} Ke7 {[%clk 00:00:15]} {[%emt 00:00:08]} 44. Rb6 {[%clk
00:00:07]} {[%emt 00:00:09]} Rb5 {[%clk 00:00:07]} {[%emt 00:00:13]} 45. Rxa6
{[%clk 00:00:07]} {[%emt 00:00:05]} R8xb7 {[%clk 00:00:09]} {[%emt 00:00:03]}
46. Re2+ {[%clk 00:00:08]} {[%emt 00:00:03]} Kf7 {[%clk 00:00:12]} {[%emt
00:00:03]} 47. Rh6 {[%clk 00:00:11]} {[%emt 00:00:02]} Rb4+ {[%clk 00:00:13]}
{[%emt 00:00:05]} 48. Kxf5 {[%clk 00:00:13]} {[%emt 00:00:03]} R7b5+ {[%clk
00:00:10]} {[%emt 00:00:07]} 49. Re5 {[%clk 00:00:16]} {[%emt 00:00:01]} Rxe5+
{[%clk 00:00:13]} {[%emt 00:00:03]} 50. Kxe5 {[%clk 00:00:20]} {[%emt
00:00:02]} Rg4 {[%clk 00:00:16]} 51. Rh2 {[%clk 00:00:22]} {[%emt 00:00:03]}
Kg6 {[%clk 00:00:16]} {[%emt 00:00:05]} 52. Rh8 {[%clk 00:00:18]} {[%emt
00:00:10]} Rg5+ {[%clk 00:00:16]} {[%emt 00:00:04]} 53. Kf4 {[%clk 00:00:20]}
{[%emt 00:00:03]} Rf5+ {[%clk 00:00:16]} {[%emt 00:00:05]} 54. Kg4 {[%clk
00:00:18]} {[%emt 00:00:04]} Rg5+ {[%clk 00:00:14]} {[%emt 00:00:10]} 55. Kh4
{[%clk 00:00:20]} {[%emt 00:00:02]} Ra5 {[%clk 00:00:06]} {[%emt 00:00:14]} 56.
g4 {[%clk 00:00:23]} {[%emt 00:00:01]} Kg7 {[%clk 00:00:07]} {[%emt 00:00:05]}
57. Rb8 {[%clk 00:00:25]} {[%emt 00:00:02]} Kg6 {[%clk 00:00:11]} {[%emt
00:00:02]} 58. Rb6+ {[%clk 00:00:28]} {[%emt 00:00:02]} Kg7 {[%clk 00:00:10]}
{[%emt 00:00:06]} 59. Kg3 {[%clk 00:00:31]} {[%emt 00:00:02]} Kf7 {[%clk
00:00:09]} {[%emt 00:00:07]} 60. Kf4 {[%clk 00:00:34]} {[%emt 00:00:01]} Kg7
{[%clk 00:00:08]} {[%emt 00:00:06]} 61. Re6 {[%clk 00:00:10]} {[%emt 00:00:28]}
Kf7 {[%clk 00:00:06]} {[%emt 00:00:07]} 62. Re4 {[%clk 00:00:13]} {[%emt
00:00:02]} Kf6 {[%clk 00:00:06]} {[%emt 00:00:06]} 63. Rd4 {[%clk 00:00:14]}
{[%emt 00:00:02]} Kf7 {[%clk 00:00:07]} {[%emt 00:00:06]} 64. g5 {[%clk
00:00:15]} {[%emt 00:00:03]} Kg6 {[%clk 00:00:09]} {[%emt 00:00:04]} 65. Rd6+
{[%clk 00:00:19]} Kf7 {[%clk 00:00:12]} {[%emt 00:00:02]} 66. Rf6+ {[%clk
00:00:10]} {[%emt 00:00:15]} Kg7 {[%clk 00:00:12]} {[%emt 00:00:05]} 67. Rf5
{[%clk 00:00:13]} {[%emt 00:00:02]} Rxf5+ {[%clk 00:00:15]} {[%emt 00:00:03]}
68. Kxf5 {[%clk 00:00:16]} Kf7 {[%clk 00:00:19]} 69. g6+ {[%clk 00:00:18]}
{[%emt 00:00:02]} Kg8 {[%clk 00:00:19]} {[%emt 00:00:06]} 70. Kg5 {[%clk
00:00:18]} {[%emt 00:00:05]} Kg7 {[%clk 00:00:22]} {[%emt 00:00:01]} 71. Kh5
{[%clk 00:00:22]} {[%emt 00:00:02]} Kg8 {[%clk 00:00:25]} {[%emt 00:00:03]} 72.
Kg5 {[%clk 00:00:23]} {[%emt 00:00:03]} Kg7 {[%clk 00:00:29]} {[%emt 00:00:01]}
73. Kf5 {[%clk 00:00:27]} {[%emt 00:00:01]} Kg8 {[%clk 00:00:32]} {[%emt
00:00:02]} 74. Kf6 {[%clk 00:00:31]} {[%emt 00:00:01]} Kf8 {[%clk 00:00:36]} 75.
g7+ {[%clk 00:00:34]} Kg8 {[%clk 00:00:40]} 1/2-1/2

[Event "The Schackveckan 2023: Göteborg open"]
[Site "Göteborgs schackcentrum, Vegagatan 20, Gothenburg, Sweden"]
[Date "2023.08.11"]
[Round "2.6"]
[White "Granath, Jonas"]
[Black "Svensson, Leif"]
[Result "1-0"]
[TimeControl "15 minutes + 5 seconds per move from move one (Round 1 - 4) / 90 minutes + 30 seconds per move from move one (Round 5 - 8)"]
[WhiteFideId "1761013"]
[BlackFideId "1702459"]
[WhiteElo "1896"]
[BlackElo "2038"]

1. e4 {[%clk 00:15:07]} {[%emt 00:00:04]} Nf6 {[%clk 00:15:09]} 2. e5 {[%clk
00:15:11]} {[%emt 00:00:01]} Nd5 {[%clk 00:15:13]} {[%emt 00:00:01]} 3. c4
{[%clk 00:15:15]} {[%emt 00:00:01]} Nb6 {[%clk 00:15:16]} 4. c5 {[%clk
00:15:19]} {[%emt 00:00:02]} Nd5 {[%clk 00:15:20]} {[%emt 00:00:01]} 5. Nc3
{[%clk 00:15:23]} c6 {[%clk 00:15:24]} {[%emt 00:00:02]} 6. d4 {[%clk
00:15:26]} {[%emt 00:00:01]} d6 {[%clk 00:15:20]} {[%emt 00:00:09]} 7. Nxd5
{[%clk 00:14:20]} {[%emt 00:01:11]} cxd5 {[%clk 00:15:23]} {[%emt 00:00:01]} 8.
cxd6 {[%clk 00:13:05]} {[%emt 00:01:21]} exd6 {[%clk 00:15:26]} {[%emt
00:00:02]} 9. Nf3 {[%clk 00:13:04]} {[%emt 00:00:06]} Nc6 {[%clk 00:15:12]}
{[%emt 00:00:19]} 10. Be2 {[%clk 00:12:01]} {[%emt 00:01:07]} dxe5 {[%clk
00:14:48]} {[%emt 00:00:30]} 11. dxe5 {[%clk 00:11:58]} {[%emt 00:00:09]} Bb4+
{[%clk 00:13:52]} {[%emt 00:01:01]} 12. Bd2 {[%clk 00:11:56]} {[%emt 00:00:06]}
Qe7 {[%clk 00:13:52]} {[%emt 00:00:05]} 13. O-O {[%clk 00:11:01]} {[%emt
00:01:00]} Bxd2 {[%clk 00:13:54]} {[%emt 00:00:04]} 14. Qxd2 {[%clk 00:11:01]}
{[%emt 00:00:05]} Be6 {[%clk 00:13:47]} {[%emt 00:00:11]} 15. Nd4 {[%clk
00:09:01]} {[%emt 00:02:05]} O-O {[%clk 00:12:00]} {[%emt 00:01:52]} 16. f4
{[%clk 00:07:41]} {[%emt 00:01:24]} Qc5 {[%clk 00:09:54]} {[%emt 00:02:12]} 17.
Rad1 {[%clk 00:07:32]} {[%emt 00:00:13]} f6 {[%clk 00:09:55]} {[%emt 00:00:05]}
18. exf6 {[%clk 00:07:27]} {[%emt 00:00:10]} Rxf6 {[%clk 00:09:52]} {[%emt
00:00:09]} 19. Kh1 {[%clk 00:07:29]} {[%emt 00:00:04]} Nxd4 {[%clk 00:09:37]}
{[%emt 00:00:19]} 20. Qxd4 {[%clk 00:07:33]} {[%emt 00:00:01]} Qxd4 {[%clk
00:09:40]} {[%emt 00:00:03]} 21. Rxd4 {[%clk 00:07:36]} Rc8 {[%clk 00:09:44]}
22. Rd2 {[%clk 00:06:15]} {[%emt 00:01:26]} g6 {[%clk 00:06:54]} {[%emt
00:02:55]} 23. g3 {[%clk 00:06:15]} {[%emt 00:00:05]} Rc5 {[%clk 00:06:10]}
{[%emt 00:00:50]} 24. Bf3 {[%clk 00:06:01]} {[%emt 00:00:19]} Bf7 {[%clk
00:05:10]} {[%emt 00:01:05]} 25. Rfd1 {[%clk 00:05:54]} {[%emt 00:00:11]} Rd6
{[%clk 00:05:13]} {[%emt 00:00:01]} 26. a3 {[%clk 00:05:17]} {[%emt 00:00:44]}
a5 {[%clk 00:05:15]} {[%emt 00:00:02]} 27. Rd4 {[%clk 00:04:37]} {[%emt
00:00:45]} b5 {[%clk 00:04:48]} {[%emt 00:00:32]} 28. R1d2 {[%clk 00:03:26]}
{[%emt 00:01:16]} Kg7 {[%clk 00:04:19]} {[%emt 00:00:35]} 29. Kg2 {[%clk
00:03:24]} {[%emt 00:00:06]} Kf6 {[%clk 00:03:52]} {[%emt 00:00:32]} 30. Kf2
{[%clk 00:03:27]} {[%emt 00:00:03]} Ke7 {[%clk 00:02:52]} {[%emt 00:01:04]} 31.
Be2 {[%clk 00:03:29]} {[%emt 00:00:03]} Rb6 {[%clk 00:02:38]} {[%emt 00:00:20]}
32. b4 {[%clk 00:03:01]} {[%emt 00:00:32]} axb4 {[%clk 00:02:07]} {[%emt
00:00:35]} 33. axb4 {[%clk 00:03:03]} {[%emt 00:00:04]} Rc3 {[%clk 00:01:58]}
{[%emt 00:00:14]} 34. Bf3 {[%clk 00:02:42]} {[%emt 00:00:25]} Rc4 {[%clk
00:01:35]} {[%emt 00:00:28]} 35. Bxd5 {[%clk 00:02:40]} {[%emt 00:00:07]} Rxd4
{[%clk 00:01:28]} {[%emt 00:00:13]} 36. Rxd4 {[%clk 00:02:44]} {[%emt
00:00:01]} Rd6 {[%clk 00:01:31]} {[%emt 00:00:01]} 37. Re4+ {[%clk 00:02:48]}
{[%emt 00:00:01]} Kf6 {[%clk 00:01:33]} {[%emt 00:00:03]} 38. Bxf7 {[%clk
00:02:40]} {[%emt 00:00:13]} Kxf7 {[%clk 00:01:37]} {[%emt 00:00:01]} 39. Ke3
{[%clk 00:02:25]} {[%emt 00:00:20]} Rc6 {[%clk 00:01:00]} {[%emt 00:00:43]} 40.
Re5 {[%clk 00:02:23]} {[%emt 00:00:07]} Rc2 {[%clk 00:01:03]} {[%emt 00:00:02]}
41. h4 {[%clk 00:01:40]} {[%emt 00:00:47]} Rc3+ {[%clk 00:01:04]} {[%emt
00:00:05]} 42. Kf2 {[%clk 00:01:41]} {[%emt 00:00:03]} h5 {[%clk 00:01:06]}
{[%emt 00:00:03]} 43. Rxb5 {[%clk 00:01:43]} {[%emt 00:00:02]} Rc2+ {[%clk
00:01:10]} 44. Kf3 {[%clk 00:01:41]} {[%emt 00:00:08]} Kf6 {[%clk 00:01:10]}
{[%emt 00:00:05]} 45. Rc5 {[%clk 00:01:39]} {[%emt 00:00:06]} Rb2 {[%clk
00:01:13]} {[%emt 00:00:03]} 46. b5 {[%clk 00:01:41]} {[%emt 00:00:03]} Rb3+
{[%clk 00:01:15]} {[%emt 00:00:03]} 47. Kf2 {[%clk 00:01:40]} {[%emt 00:00:05]}
Rb2+ {[%clk 00:01:19]} {[%emt 00:00:02]} 48. Kf3 {[%clk 00:01:44]} {[%emt
00:00:02]} Rb3+ {[%clk 00:01:23]} 49. Kg2 {[%clk 00:01:48]} Rb2+ {[%clk
00:01:27]} {[%emt 00:00:01]} 50. Kh3 {[%clk 00:01:52]} {[%emt 00:00:01]} Kf7
{[%clk 00:01:26]} {[%emt 00:00:06]} 51. f5 {[%clk 00:01:47]} {[%emt 00:00:10]}
Kf6 {[%clk 00:01:17]} {[%emt 00:00:15]} 52. fxg6 {[%clk 00:01:48]} {[%emt
00:00:03]} Kxg6 {[%clk 00:01:21]} {[%emt 00:00:01]} 53. Rc6+ {[%clk 00:01:49]}
{[%emt 00:00:04]} Kg7 {[%clk 00:01:24]} 54. b6 {[%clk 00:01:53]} {[%emt
00:00:02]} Kf7 {[%clk 00:01:27]} {[%emt 00:00:01]} 55. Rc7+ {[%clk 00:01:55]}
{[%emt 00:00:03]} Kg6 {[%clk 00:01:31]} {[%emt 00:00:01]} 56. b7 {[%clk
00:01:55]} {[%emt 00:00:06]} Kf5 {[%clk 00:01:32]} {[%emt 00:00:03]} 57. Rh7
{[%clk 00:01:47]} {[%emt 00:00:12]} Kg6 {[%clk 00:01:35]} {[%emt 00:00:02]} 58.
Rc7 {[%clk 00:01:48]} {[%emt 00:00:04]} Kf6 {[%clk 00:01:37]} {[%emt 00:00:03]}
59. Rc5 {[%clk 00:01:49]} {[%emt 00:00:05]} Rxb7 {[%clk 00:01:39]} {[%emt
00:00:03]} 60. Rxh5 {[%clk 00:01:52]} Rb3 {[%clk 00:01:42]} {[%emt 00:00:02]}
61. Kg4 {[%clk 00:01:48]} {[%emt 00:00:10]} Rb4+ {[%clk 00:01:46]} {[%emt
00:00:01]} 62. Kf3 {[%clk 00:01:51]} Rb3+ {[%clk 00:01:51]} 63. Kf2 {[%clk
00:01:52]} {[%emt 00:00:04]} Rb2+ {[%clk 00:01:55]} {[%emt 00:00:01]} 64. Kf3
{[%clk 00:01:54]} {[%emt 00:00:04]} Rb3+ {[%clk 00:01:59]} 65. Kg2 {[%clk
00:01:58]} {[%emt 00:00:01]} Rb2+ {[%clk 00:02:04]} 66. Kh3 {[%clk 00:02:01]}
{[%emt 00:00:02]} Rb3 {[%clk 00:02:08]} {[%emt 00:00:01]} 67. Ra5 {[%clk
00:02:03]} {[%emt 00:00:03]} Rc3 {[%clk 00:02:11]} {[%emt 00:00:03]} 68. Kg4
{[%clk 00:01:58]} {[%emt 00:00:09]} Rc4+ {[%clk 00:02:12]} {[%emt 00:00:04]} 69.
Kh5 {[%clk 00:02:01]} {[%emt 00:00:02]} Rc3 {[%clk 00:02:16]} 70. g4 {[%clk
00:02:04]} {[%emt 00:00:02]} Rg3 {[%clk 00:02:20]} {[%emt 00:00:01]} 71. g5+
{[%clk 00:01:59]} {[%emt 00:00:11]} Kg7 {[%clk 00:02:24]} 72. Ra7+ {[%clk
00:02:00]} {[%emt 00:00:04]} Kh8 {[%clk 00:02:28]} 73. Kg6 {[%clk 00:02:02]}
{[%emt 00:00:02]} Ra3 {[%clk 00:02:30]} {[%emt 00:00:04]} 74. Rxa3 {[%clk
00:02:03]} {[%emt 00:00:04]} 1-0

[Event "The Schackveckan 2023: Göteborg open"]
[Site "Göteborgs schackcentrum, Vegagatan 20, Gothenburg, Sweden"]
[Date "2023.08.11"]
[Round "2.7"]
[White "Ottgard, Andreas"]
[Black "Harila, Per"]
[Result "1/2-1/2"]
[TimeControl "15 minutes + 5 seconds per move from move one (Round 1 - 4) / 90 minutes + 30 seconds per move from move one (Round 5 - 8)"]
[WhiteFideId "1730592"]
[BlackFideId "1707248"]
[WhiteElo "1874"]
[BlackElo "2016"]

1. c4 {[%clk 00:15:08]} {[%emt 00:00:01]} f5 {[%clk 00:15:09]} {[%emt
00:00:02]} 2. g3 {[%clk 00:14:55]} {[%emt 00:00:17]} Nf6 {[%clk 00:15:11]}
{[%emt 00:00:03]} 3. Bg2 {[%clk 00:14:50]} {[%emt 00:00:09]} d6 {[%clk
00:15:09]} {[%emt 00:00:08]} 4. Nc3 {[%clk 00:14:32]} {[%emt 00:00:23]} g6
{[%clk 00:15:12]} {[%emt 00:00:02]} 5. d3 {[%clk 00:14:18]} {[%emt 00:00:18]}
Bg7 {[%clk 00:15:05]} {[%emt 00:00:12]} 6. Nf3 {[%clk 00:13:42]} {[%emt
00:00:42]} O-O {[%clk 00:15:01]} {[%emt 00:00:10]} 7. O-O {[%clk 00:13:36]}
{[%emt 00:00:10]} e5 {[%clk 00:14:57]} {[%emt 00:00:09]} 8. Rb1 {[%clk
00:12:55]} {[%emt 00:00:46]} Nc6 {[%clk 00:14:41]} {[%emt 00:00:21]} 9. b4
{[%clk 00:12:40]} {[%emt 00:00:20]} h6 {[%clk 00:14:28]} {[%emt 00:00:18]} 10.
a4 {[%clk 00:12:14]} {[%emt 00:00:31]} g5 {[%clk 00:14:23]} {[%emt 00:00:09]}
11. e3 {[%clk 00:11:54]} {[%emt 00:00:26]} Qe8 {[%clk 00:13:34]} {[%emt
00:00:55]} 12. Nd5 {[%clk 00:11:19]} {[%emt 00:00:39]} Qh5 {[%clk 00:12:42]}
{[%emt 00:00:57]} 13. Nxc7 {[%clk 00:10:47]} {[%emt 00:00:37]} f4 {[%clk
00:11:53]} {[%emt 00:00:54]} 14. Nxa8 {[%clk 00:09:30]} {[%emt 00:01:23]} Bh3
{[%clk 00:11:46]} {[%emt 00:00:10]} 15. Nc7 {[%clk 00:07:54]} {[%emt 00:01:42]}
Ng4 {[%clk 00:11:42]} {[%emt 00:00:09]} 16. Ne6 {[%clk 00:06:44]} {[%emt
00:01:16]} fxg3 {[%clk 00:11:08]} {[%emt 00:00:38]} 17. Nxf8 {[%clk 00:05:47]}
{[%emt 00:01:03]} e4 {[%clk 00:10:30]} {[%emt 00:00:43]} 18. dxe4 {[%clk
00:03:57]} {[%emt 00:01:55]} Nce5 {[%clk 00:10:31]} {[%emt 00:00:03]} 19. Nxe5
{[%clk 00:03:18]} {[%emt 00:00:45]} gxh2+ {[%clk 00:10:27]} {[%emt 00:00:08]}
20. Kh1 {[%clk 00:03:17]} {[%emt 00:00:06]} Nxf2+ {[%clk 00:09:41]} {[%emt
00:00:52]} 21. Rxf2 {[%clk 00:02:55]} {[%emt 00:00:27]} Qxd1+ {[%clk 00:09:43]}
{[%emt 00:00:03]} 22. Kxh2 {[%clk 00:02:55]} {[%emt 00:00:05]} Bxg2 {[%clk
00:09:24]} {[%emt 00:00:24]} 23. Kxg2 {[%clk 00:02:17]} {[%emt 00:00:42]} Bxe5
{[%clk 00:09:18]} {[%emt 00:00:10]} 1/2-1/2

[Event "The Schackveckan 2023: Göteborg open"]
[Site "Göteborgs schackcentrum, Vegagatan 20, Gothenburg, Sweden"]
[Date "2023.08.11"]
[Round "2.8"]
[White "Buzleta, Patrik"]
[Black "Bengtsson, Siv"]
[Result "0-1"]
[TimeControl "15 minutes + 5 seconds per move from move one (Round 1 - 4) / 90 minutes + 30 seconds per move from move one (Round 5 - 8)"]
[WhiteFideId "1755463"]
[BlackFideId "1701673"]
[WhiteElo "1604"]
[BlackElo "2010"]

1. Nf3 {[%clk 00:15:08]} {[%emt 00:00:01]} Nf6 {[%clk 00:15:06]} {[%emt
00:00:05]} 2. b3 {[%clk 00:15:06]} {[%emt 00:00:08]} g6 {[%clk 00:15:05]}
{[%emt 00:00:05]} 3. Bb2 {[%clk 00:15:06]} {[%emt 00:00:05]} Bg7 {[%clk
00:15:05]} {[%emt 00:00:04]} 4. e3 {[%clk 00:15:07]} {[%emt 00:00:04]} d5
{[%clk 00:15:06]} {[%emt 00:00:04]} 5. Qc1 {[%clk 00:15:04]} {[%emt 00:00:07]}
O-O {[%clk 00:14:40]} {[%emt 00:00:31]} 6. h3 {[%clk 00:15:05]} {[%emt
00:00:03]} c5 {[%clk 00:14:35]} {[%emt 00:00:12]} 7. d3 {[%clk 00:15:01]}
{[%emt 00:00:09]} Nc6 {[%clk 00:14:33]} {[%emt 00:00:06]} 8. Nbd2 {[%clk
00:14:59]} {[%emt 00:00:07]} d4 {[%clk 00:13:58]} {[%emt 00:00:41]} 9. a3
{[%clk 00:14:25]} {[%emt 00:00:39]} e5 {[%clk 00:13:21]} {[%emt 00:00:42]} 10.
Be2 {[%clk 00:13:41]} {[%emt 00:00:48]} dxe3 {[%clk 00:13:11]} {[%emt
00:00:15]} 11. fxe3 {[%clk 00:13:41]} {[%emt 00:00:04]} Nh5 {[%clk 00:12:37]}
{[%emt 00:00:39]} 12. Ne4 {[%clk 00:13:10]} {[%emt 00:00:37]} Qe7 {[%clk
00:11:37]} {[%emt 00:01:06]} 13. g4 {[%clk 00:12:44]} {[%emt 00:00:30]} Nf6
{[%clk 00:11:40]} 14. Nxf6+ {[%clk 00:10:40]} {[%emt 00:02:10]} Bxf6 {[%clk
00:11:43]} {[%emt 00:00:02]} 15. Qd2 {[%clk 00:10:00]} {[%emt 00:00:45]} e4
{[%clk 00:10:46]} {[%emt 00:01:02]} 16. Bxf6 {[%clk 00:07:34]} {[%emt
00:02:31]} Qxf6 {[%clk 00:10:48]} {[%emt 00:00:02]} 17. O-O {[%clk 00:07:36]}
{[%emt 00:00:05]} exf3 {[%clk 00:10:50]} {[%emt 00:00:03]} 18. Bxf3 {[%clk
00:07:19]} {[%emt 00:00:21]} Qd6 {[%clk 00:10:03]} {[%emt 00:00:52]} 19. Qg2
{[%clk 00:07:08]} {[%emt 00:00:15]} Bd7 {[%clk 00:09:31]} {[%emt 00:00:38]} 20.
Rad1 {[%clk 00:07:07]} {[%emt 00:00:06]} Rae8 {[%clk 00:09:29]} {[%emt
00:00:07]} 21. Qf2 {[%clk 00:06:56]} {[%emt 00:00:16]} b6 {[%clk 00:08:28]}
{[%emt 00:01:06]} 22. c3 {[%clk 00:06:10]} {[%emt 00:00:50]} Qe5 {[%clk
00:06:09]} {[%emt 00:02:25]} 23. d4 {[%clk 00:05:10]} {[%emt 00:01:06]} cxd4
{[%clk 00:06:11]} {[%emt 00:00:02]} 24. exd4 {[%clk 00:04:49]} {[%emt
00:00:26]} Qe3 {[%clk 00:05:34]} {[%emt 00:00:42]} 25. Rc1 {[%clk 00:04:18]}
{[%emt 00:00:35]} Na5 {[%clk 00:03:47]} {[%emt 00:01:51]} 26. Qxe3 {[%clk
00:03:19]} {[%emt 00:01:06]} Rxe3 {[%clk 00:03:50]} {[%emt 00:00:02]} 27. Kf2
{[%clk 00:03:23]} Rfe8 {[%clk 00:02:56]} {[%emt 00:01:00]} 28. c4 {[%clk
00:02:20]} {[%emt 00:01:09]} Nxb3 {[%clk 00:02:35]} {[%emt 00:00:25]} 29. Rcd1
{[%clk 00:02:15]} {[%emt 00:00:10]} Na5 {[%clk 00:02:32]} {[%emt 00:00:09]} 30.
c5 {[%clk 00:02:11]} {[%emt 00:00:08]} bxc5 {[%clk 00:02:09]} {[%emt 00:00:28]}
31. dxc5 {[%clk 00:02:14]} {[%emt 00:00:02]} Bc6 {[%clk 00:02:10]} {[%emt
00:00:03]} 32. Bxc6 {[%clk 00:01:53]} {[%emt 00:00:27]} Nxc6 {[%clk 00:02:14]}
33. Rd6 {[%clk 00:01:40]} {[%emt 00:00:17]} R3e6 {[%clk 00:01:58]} {[%emt
00:00:21]} 34. Rfd1 {[%clk 00:01:29]} {[%emt 00:00:16]} Kf8 {[%clk 00:01:37]}
{[%emt 00:00:26]} 35. h4 {[%clk 00:01:16]} {[%emt 00:00:18]} Ne5 {[%clk
00:00:55]} {[%emt 00:00:48]} 36. Kg3 {[%clk 00:00:54]} {[%emt 00:00:27]} Rc8
{[%clk 00:00:49]} {[%emt 00:00:10]} 37. R1d5 {[%clk 00:00:51]} {[%emt
00:00:10]} Rxd6 {[%clk 00:00:44]} {[%emt 00:00:09]} 38. cxd6 {[%clk 00:00:50]}
{[%emt 00:00:06]} Nd7 {[%clk 00:00:33]} {[%emt 00:00:15]} 39. Kf4 {[%clk
00:00:44]} {[%emt 00:00:10]} f6 {[%clk 00:00:30]} {[%emt 00:00:10]} 40. Rd4
{[%clk 00:00:33]} {[%emt 00:00:16]} Rc6 {[%clk 00:00:28]} {[%emt 00:00:06]} 41.
Ke4 {[%clk 00:00:29]} {[%emt 00:00:09]} Kf7 {[%clk 00:00:31]} {[%emt 00:00:03]}
42. Kd5 {[%clk 00:00:30]} {[%emt 00:00:04]} Ra6 {[%clk 00:00:35]} {[%emt
00:00:01]} 43. Rd3 {[%clk 00:00:16]} {[%emt 00:00:18]} Ne5 {[%clk 00:00:35]}
{[%emt 00:00:06]} 44. Rc3 {[%clk 00:00:17]} {[%emt 00:00:04]} Ra5+ {[%clk
00:00:34]} {[%emt 00:00:06]} 45. Ke4 {[%clk 00:00:12]} {[%emt 00:00:09]} Ke6
{[%clk 00:00:38]} {[%emt 00:00:02]} 46. g5 {[%clk 00:00:09]} {[%emt 00:00:08]}
Ra4+ {[%clk 00:00:38]} {[%emt 00:00:04]} 47. Ke3 {[%clk 00:00:10]} {[%emt
00:00:03]} Rxh4 {[%clk 00:00:39]} {[%emt 00:00:06]} 48. gxf6 {[%clk 00:00:11]}
{[%emt 00:00:04]} Rh3+ {[%clk 00:00:42]} 49. Kd4 {[%clk 00:00:16]} Rxc3 {[%clk
00:00:45]} {[%emt 00:00:03]} 50. Kxc3 {[%clk 00:00:16]} {[%emt 00:00:06]} Kxf6
{[%clk 00:00:48]} {[%emt 00:00:01]} 0-1